Cogmind - Beta 15 @@@ ROGUE MODE // 2025.08.19 @ 19:13:49 Player: beans Result: Destroyed by Y-45 Defender with Heavy Assault Rifle Performance ------------- Evolutions (2) 1000 Regions Visited (6) 1200 Robots Destroyed (28) 140 Value Destroyed (627) 627 Prototype IDs (23) 460 Alien Tech Used (0) 0 Bonus (300) 300 TOTAL SCORE: 3727 Bonus ------- Aligned with FarCom 300 Cogmind --------- Core Integrity 0/550 Matter 300/300 Energy 98/100 System Corruption 1% Temperature Cool (0) Movement Core (50) Location -8/Storage Parts ------- > --- POWER (2) -------- (None) > --- PROPULSION (2) --- (None) > --- UTILITY (4) ------ 0b10 Alert Chip Salvage Targeting Computer > --- WEAPON (3) ------- (None) > --- INVENTORY (5) ---- Improved Heat Sink High-capacity Matter Pod (200) High-capacity Matter Pod (200) Peak State ------------ > --- POWER ------------ Deuterium Engine > --- PROPULSION ------- (None) > --- UTILITY ---------- 0b10 Alert Chip Salvage Targeting Computer > --- WEAPON ----------- Medium Laser Field Laser > --- INVENTORY -------- Improved Heat Sink High-capacity Matter Pod Salvage Targeting Computer Rocket Launcher [Rating: 15] Favorites ----------- Power Deuterium Engine Engine Deuterium Engine Propulsion Aluminum Leg Leg Aluminum Leg Utility Salvage Targeting Computer Processor Salvage Targeting Computer Weapon Medium Laser Energy Gun Medium Laser Ballistic Gun Heavy Assault Rifle Launcher Rocket Launcher Special Weapon Plasma Cutter Build | -11 -10 -10 -10 -9 -8 -8 ------- Run | Yrd Mat Min Exi Min Mat Sto Slots Evolved 4 | . . . . . 4 . Power 1 | . . . . . 1 . Propulsion . | . . . . . . . Utility 2 | . . . . . 2 . Weapon 1 | . . . . . 1 . Parts Attached 16 | 5 3 3 1 . . 4 Power 2 | 1 . 1 . . . . Engine 2 | 1 . 1 . . . . Core . | . . . . . . . Reactor . | . . . . . . . Propulsion 2 | 2 . . . . . . Treads . | . . . . . . . Leg 2 | 2 . . . . . . Wheel . | . . . . . . . Hover . | . . . . . . . Flight . | . . . . . . . Utility 4 | . 2 . 1 . . 1 Device . | . . . . . . . Storage . | . . . . . . . Processor 4 | . 2 . 1 . . 1 Hackware . | . . . . . . . Protection . | . . . . . . . Artifact . | . . . . . . . Weapon 8 | 2 1 2 . . . 3 Energy Gun 3 | 2 . 1 . . . . Energy Cannon . | . . . . . . . Ballistic Gun 2 | . . . . . . 2 Ballistic Cannon . | . . . . . . . Launcher 2 | . 1 1 . . . . Special Weapon 1 | . . . . . . 1 Impact Weapon . | . . . . . . . Slashing Weapon . | . . . . . . . Piercing Weapon . | . . . . . . . Special Melee Weapon . | . . . . . . . Unidentified Prototypes . | . . . . . . . Parts Lost 10 | . 1 1 . . . 8 Power 1 | . . . . . . 1 Propulsion 2 | . 1 1 . . . . Utility 1 | . . . . . . 1 Weapon 6 | . . . . . . 6 Highest Loss Streak 4 | . 1 1 . . . 4 To Critical Strikes . | . . . . . . . Average Backups 4 | . 3 5 4 5 5 4 Power . | . . . . . . . Propulsion . | . . . . . . . Utility 3 | . 2 4 3 4 4 3 Weapon . | . . 1 1 1 1 . Tool/Special . | . . . . . . . Unused Backups 4 | . . . 1 . . 3 Power . | . . . . . . . Propulsion . | . . . . . . . Utility 4 | . . . 1 . . 3 Weapon . | . . . . . . . Tool/Special . | . . . . . . . Average Slot Usage (%) 71 | . 88 73 71 71 45 30 Engine 12 | . 14 14 14 14 9 3 Leg 5 | . 21 2 . . . . Processor 25 | . 23 28 28 28 18 17 Energy Gun 22 | . 23 24 28 17 9 4 Launcher 3 | . 4 3 . 10 9 3 Peak Build Rating 15 | 5 9 13 15 15 15 15 Average Rating 11 | 3 7 11 13 15 15 11 On Entrance 10 | . 5 8 12 15 15 15 Naked Turns . | . . . . . . . Heaviest Build 16 | 9 10 16 14 15 15 15 Greatest Support 20 | 20 20 10 3 3 3 3 Greatest Overweight (x) 5 | . . 5 4 4 4 4 Average Overweight (x) 2 | . . 3 4 4 4 . Largest Inventory Capacity 5 | 5 5 5 5 5 5 5 Average Capacity 5 | 5 5 5 5 5 5 5 Most Carried 5 | 2 5 5 5 5 5 5 Average Carried 4 | . 3 5 4 5 5 4 Final Capacity 5 | 5 5 5 5 5 5 5 Final Carried 5 | . 5 5 5 5 5 3 Class Distribution -------------------- 100% | Mutant Dominant Class ---------------- Mutant | -10/Materials Mutant | -10/Mines Mutant | -10/Exiles Mutant | -9/Mines Mutant | -8/Materials Mutant | -8/Storage Resources | -11 -10 -10 -10 -9 -8 -8 ----------- Run | Yrd Mat Min Exi Min Mat Sto Matter Collected 975 | 231 414 176 10 26 27 91 Remotely . | . . . . . . . Salvage Created 882 | . 558 143 . 20 41 120 Parts 47 | . 32 3 . 7 1 4 Haulers Intercepted 1 | . 1 . . . . . Recyclers Shooed 1 | . 1 . . . . . Parts Field Recycled . | . . . . . . . Retrieved Matter . | . . . . . . . Parts Self-Destructed . | . . . . . . . Prevented . | . . . . . . . Kills | -11 -10 -10 -10 -9 -8 -8 ------- Run | Yrd Mat Min Exi Min Mat Sto Combat Hostiles Destroyed 24 | . 7 10 . 4 1 2 Guns 7 | . 1 4 . . . 2 AOE 17 | . 6 6 . 4 1 . Classes Destroyed 10 | . 8 1 . . 1 . Builder 2 | . 2 . . . . . Tunneler 3 | . 2 1 . . . . Hauler 1 | . 1 . . . . . Recycler 2 | . 2 . . . . . Mechanic 1 | . 1 . . . . . Watcher 3 | . 3 . . . . . Swarmer 6 | . 2 . . 4 . . Grunt 8 | . 5 2 . . . 1 Sentry 2 | . . . . . 1 1 Assembled 8 | . . 8 . . . . Best Kill Streak 8 | . 8 3 . 4 1 1 Combat Bots Only 4 | . 4 3 . 4 1 1 Max Kills in Single Turn 4 | . 2 2 . 4 1 1 Gunslinging . | . . . . . . . Exploded 4 | . 2 2 . 4 1 . Melee . | . . . . . . . Uniques/NPCs Destroyed . | . . . . . . . Combat | -11 -10 -10 -10 -9 -8 -8 -------- Run | Yrd Mat Min Exi Min Mat Sto Hostile Shots Fired 138 | . 35 10 . 3 9 81 Missed 44 | . 16 2 . . 3 23 Hits 94 | . 19 8 . 3 6 58 Melee 2 | . . 2 . . . . Projectile 92 | . 19 6 . 3 6 58 Critical Strikes 6 | . 1 . . . 1 4 Damage Taken 1525 | . 307 167 . 41 83 927 Core 648 | . 50 27 . 8 33 530 Absorbed by Shields . | . . . . . . . Core Remaining (%) 83 | 100 . . . 66 . . Volleys Fired 110 | . 62 24 . 1 2 21 Largest 2 | . 2 2 . 1 1 2 Hottest 113 | . 100 113 . 33 33 113 Shots Fired 176 | . 108 35 . 1 2 30 Gun 146 | . 94 24 . . . 28 Cannon . | . . . . . . . Launcher 30 | . 14 11 . 1 2 2 Special . | . . . . . . . Kinetic 18 | . . . . . . 18 Thermal 128 | . 94 24 . . . 10 Explosive 30 | . 14 11 . 1 2 2 Electromagnetic . | . . . . . . . Robot Hit Streak 10 | . 9 6 . . . 10 Robot Miss Streak 4 | . 4 1 . 1 . 2 Penetration Max . | . . . . . . . Secondary Targets . | . . . . . . . Shots Hit Robots 94 | . 51 20 . . . 23 Core Hits 61 | . 33 17 . 4 2 5 Critical Kills . | . . . . . . . Critical Parts Destroyed . | . . . . . . . Critical Strikes 7 | . 5 2 . . . . Burn 7 | . 5 2 . . . . Melee Attacks . | . . . . . . . Impact . | . . . . . . . Slashing . | . . . . . . . Piercing . | . . . . . . . Sneak Attacks . | . . . . . . . Combat Hostiles . | . . . . . . . Follow-up Attacks . | . . . . . . . Damage Inflicted 2477 | . 1288 612 . 175 42 360 Guns 1172 | . 563 260 . . . 349 Cannons . | . . . . . . . Explosions 1301 | . 725 352 . 175 42 7 Melee . | . . . . . . . Ramming 4 | . . . . . . 4 Kinetic 249 | . . . . . . 249 Thermal 923 | . 563 260 . . . 100 Explosive 1225 | . 649 352 . 175 42 7 Electromagnetic 76 | . 76 . . . . . Impact . | . . . . . . . Slashing . | . . . . . . . Piercing . | . . . . . . . Highest Corruption 1 | . . . . . . 1 Average Corruption 1 | . . . . . . 1 Corruption Purged . | . . . . . . . Corruption Blocked . | . . . . . . . Effects 1 | . . . . . . 1 Data Loss (minor) 1 | . . . . . . 1 Overload Shots . | . . . . . . . Overflow Damage 42 | . 23 12 . . . 7 Projectiles . | . . . . . . . Explosions 42 | . 23 12 . . . 7 Melee . | . . . . . . . Knockbacks . | . . . . . . . Impact . | . . . . . . . Kinetic . | . . . . . . . Secondary . | . . . . . . . Self-Inflicted Damage 163 | . 94 . . 18 . 51 Shots 5 | . 3 . . 1 . 1 Rammed 1 | . . . . . . 1 Targets Rammed 1 | . . . . . . 1 Kicked . | . . . . . . . Crushed . | . . . . . . . Highest Temperature 312 | . 312 288 . . 18 90 Average Temperature 72 | . 69 87 . . 13 49 Received Heat Transfer 594 | . 69 39 . . 36 450 Effects 2 | . 1 1 . . . . Shutdowns 1 | . 1 . . . . . Energy Bleed 1 | . . 1 . . . . Siege Activations . | . . . . . . . Martial Activations . | . . . . . . . Shielding Activations . | . . . . . . . Robots Disrupted . | . . . . . . . Combat Hostiles . | . . . . . . . Robots Corrupted . | . . . . . . . Combat Hostiles . | . . . . . . . Parts Fried . | . . . . . . . Impact Corruptions . | . . . . . . . Robots Melted . | . . . . . . . Combat Hostiles . | . . . . . . . Parts Melted 8 | . 7 1 . . . . Heat Transferred 3071 | . 2035 777 . . . 259 Parts Sabotaged . | . . . . . . . Parts Stolen . | . . . . . . . Parts Stripped . | . . . . . . . Power Chain Reactions . | . . . . . . . Alert | -11 -10 -10 -10 -9 -8 -8 ------- Run | Yrd Mat Min Exi Min Mat Sto Maximum Alert Level . | . . . . . . . Low Security (%) 100 | 100 100 100 . 100 100 100 Level 1 . | . . . . . . . Level 2 . | . . . . . . . Level 3 . | . . . . . . . Level 4 . | . . . . . . . Level 5 . | . . . . . . . High Security . | . . . . . . . Max Security . | . . . . . . . Peak Influence 189 | . 189 72 . 83 38 28 Initial 69 | . . 69 . . . 11 Average 43 | . 111 18 . 16 15 4 Influence Increases 826 | . 455 140 . 83 38 110 Destroy 0b10 Robot/C 292 | . 140 40 . 64 16 32 Destroy 0b10 Robot/NC 60 | . 55 5 . . . . Destroy Leader 82 | . 48 10 . 8 8 8 Disable Machine 90 | . 90 . . . . . Destroy Structure 254 | . 122 85 . 11 14 22 Lose Combat Pursuer 48 | . . . . . . 48 Influence Decreases 802 | . 277 318 . 83 10 114 Entered New Map 126 | . . 109 . . . 17 Time Decay 621 | . 267 199 . 83 10 62 Lost Part 55 | . 10 10 . . . 35 Squads Dispatched 6 | . 3 1 . . 1 1 Investigation 2 | . 1 1 . . . . Extermination . | . . . . . . . Reinforcement 4 | . 2 . . . 1 1 Assault . | . . . . . . . Garrison . | . . . . . . . Intercept . | . . . . . . . Searches Triggered . | . . . . . . . Construction Impeded . | . . . . . . . Haulers Reinforced . | . . . . . . . Active Scanning Responses . | . . . . . . . Cargo Convoy Interrupts . | . . . . . . . Stealth | -11 -10 -10 -10 -9 -8 -8 --------- Run | Yrd Mat Min Exi Min Mat Sto Distress Signals 1 | . . . . . . 1 Communications Jammed . | . . . . . . . Distress Signals . | . . . . . . . Times Spotted 45 | . 15 10 . 4 5 11 Peak Tracking Total 11 | . 3 3 . 4 5 11 Tactical Retreats 3 | . . 1 . . . 2 Traps | -11 -10 -10 -10 -9 -8 -8 ------- Run | Yrd Mat Min Exi Min Mat Sto Traps Triggered 3 | . 2 . . . . 1 Indirectly . | . . . . . . . Trap Hack Attempts . | . . . . . . . Triggered . | . . . . . . . Disarmed . | . . . . . . . Reprogrammed . | . . . . . . . Reused . | . . . . . . . Traps Extracted . | . . . . . . . Installed . | . . . . . . . Triggered . | . . . . . . . Machines | -11 -10 -10 -10 -9 -8 -8 ---------- Run | Yrd Mat Min Exi Min Mat Sto Machines Disabled 6 | . 6 . . . . . Max in Single Turn 3 | . 3 . . . . . Machines Repaired . | . . . . . . . Machines Dismantled . | . . . . . . . Machines Sabotaged . | . . . . . . . Overloaded Fab Kills . | . . . . . . . Hacking | -11 -10 -10 -10 -9 -8 -8 --------- Run | Yrd Mat Min Exi Min Mat Sto Machines Accessed 2 | . . 1 1 . . . Terminals . | . . . . . . . Fabricators . | . . . . . . . Repair Stations . | . . . . . . . Recycling Units . | . . . . . . . Scanalyzers . | . . . . . . . Garrison Access . | . . . . . . . Total Hacks 2 | . . 1 1 . . . Successful 2 | . . 1 1 . . . Failed . | . . . . . . . Catastrophic . | . . . . . . . Database Lockouts . | . . . . . . . Manual 1 | . . . 1 . . . Terminals . | . . . . . . . Fabricators . | . . . . . . . Repair Stations . | . . . . . . . Recycling Units . | . . . . . . . Scanalyzers . | . . . . . . . Garrison Access . | . . . . . . . Terminal Hacks 2 | . . 1 1 . . . Open Door 1 | . . 1 . . . . Proto ID Catalog 1 | . . . 1 . . . Fabricator Hacks . | . . . . . . . Repair Station Hacks . | . . . . . . . Recycling Unit Hacks . | . . . . . . . Scanalyzer . | . . . . . . . Garrison Access Hacks . | . . . . . . . Unauthorized Hacks . | . . . . . . . Terminals . | . . . . . . . Fabricators . | . . . . . . . Repair Stations . | . . . . . . . Recycling Units . | . . . . . . . Scanalyzers . | . . . . . . . Garrison Access . | . . . . . . . Data Cores Recovered . | . . . . . . . Used . | . . . . . . . Hacking Detections . | . . . . . . . Full Trace Events . | . . . . . . . Feedback Events . | . . . . . . . Feedback Blocked . | . . . . . . . Robot Schematics Acquired . | . . . . . . . Robots Built . | . . . . . . . Authchips . | . . . . . . . Time . | . . . . . . . Total Robot Build Rating . | . . . . . . . Part Schematics Acquired . | . . . . . . . Parts Built . | . . . . . . . Authchips . | . . . . . . . Time . | . . . . . . . Total Part Build Rating . | . . . . . . . Parts Repaired . | . . . . . . . Time . | . . . . . . . Parts Recycled . | . . . . . . . Recycled Matter . | . . . . . . . Retrieved Matter . | . . . . . . . Retrieved Components . | . . . . . . . Parts Scanalyzed . | . . . . . . . Part Schematics Acquired . | . . . . . . . Parts Damaged . | . . . . . . . Bothacking | -11 -10 -10 -10 -9 -8 -8 ------------ Run | Yrd Mat Min Exi Min Mat Sto Used RIF Installer . | . . . . . . . Robots Hacked . | . . . . . . . Non-combat . | . . . . . . . Combat . | . . . . . . . Robot Hacks Applied . | . . . . . . . Relay Couplers Released . | . . . . . . . Fabnet Peak Effective % . | . . . . . . . Robots Rewired . | . . . . . . . Allies Hacked . | . . . . . . . Hacks Repelled . | . . . . . . . Allies | -11 -10 -10 -10 -9 -8 -8 -------- Run | Yrd Mat Min Exi Min Mat Sto Total Allies . | . . . . . . . Largest Group . | . . . . . . . Highest-Rated Group . | . . . . . . . Highest-Rated Ally . | . . . . . . . Total Orders . | . . . . . . . Ally Attacks . | . . . . . . . Total Damage . | . . . . . . . Kills . | . . . . . . . Allies Corrupted . | . . . . . . . Allies Melted . | . . . . . . . Intel | -11 -10 -10 -10 -9 -8 -8 ------- Run | Yrd Mat Min Exi Min Mat Sto Active Infowar (turns) . | . . . . . . . Robot Analysis Total . | . . . . . . . Derelict Logs Recovered 1 | . . . . 1 . . Drone Launches . | . . . . . . . Drone Recoveries . | . . . . . . . Exploration | -11 -10 -10 -10 -9 -8 -8 ------------- Run | Yrd Mat Min Exi Min Mat Sto Turns Passed 3068 | 59 679 799 807 389 79 256 Spaces Moved 1474 | 47 408 310 322 150 31 206 Core 951 | 9 . 233 322 150 31 206 Treads . | . . . . . . . Legs 523 | 38 408 77 . . . . Wheels . | . . . . . . . Hover . | . . . . . . . Flight . | . . . . . . . Fastest Speed 50 | 50 120 120 250 250 250 50 Average Speed 181 | 106 120 232 250 250 250 80 Slowest Speed 300 | 120 120 300 250 250 250 250 Overloaded Moves . | . . . . . . . Propulsion Burnouts . | . . . . . . . Robots Hopped . | . . . . . . . Potential Cave-ins . | . . . . . . . Cave-ins Triggered . | . . . . . . . Exploration Rate (%) 43 | 4 76 70 62 37 7 50 Regions Visited 6 Branch Regions 4 Pre-discovered Areas . | . . . . . . . Known Exits Taken . | . . . . . . . Unknown Exits Taken 6 | 1 1 1 1 1 1 . Scrap Searched . | . . . . . . . Spaces Dug 19 | . 7 . . . . 12 Terrain Destroyed 311 | . 148 113 . 11 17 22 Melee . | . . . . . . . Projectile . | . . . . . . . AOE 311 | . 148 113 . 11 17 22 Terrain Rammed . | . . . . . . . Walls Destroyed . | . . . . . . . Machines Disabled . | . . . . . . . Actions | -11 -10 -10 -10 -9 -8 -8 --------- Run | Yrd Mat Min Exi Min Mat Sto Total 1675 | 56 487 357 326 164 32 253 Wait 42 | . 5 14 . 13 . 10 Move 1468 | 46 407 309 321 149 30 206 Hop . | . . . . . . . Pick Up 18 | 5 7 1 2 . . 3 Fast Attach 1 | . . 1 . . . . Attach 13 | 5 2 . 1 . . 5 Detach . | . . . . . . . Swap 10 | . 4 5 . 1 . . Drop 5 | . . 3 2 . . . Fire 110 | . 62 24 . 1 2 21 Melee . | . . . . . . . Ram 1 | . . . . . . 1 Kick . | . . . . . . . Crush . | . . . . . . . Escape Stasis . | . . . . . . . Rewire . | . . . . . . . Trap . | . . . . . . . Miscellaneous 7 | . . . . . . 7 Route ------- -11/Scrapyard -10/Materials (discovered 4 exits: [*Mat] / *Min x2 / [*Sub]) -10/Mines (discovered 3 exits: [*Mat x2] / *Exi) -10/Exiles -9/Mines -8/Materials -8/Storage History --------- Turn | Location | Event 3 | -11/Scrapyard | Discovered new exit (range 15) 60 | -11/Scrapyard | Entered Materials 197 | -10/Materials | Discovered new exit (range 6) 284 | -10/Materials | Discovered new exit (range 9) 321 | -10/Materials | Build established: Mutant 542 | -10/Materials | Discovered new exit (range 5) 693 | -10/Materials | Discovered new exit (range 15) 739 | -10/Materials | Entered Mines 776 | -10/Mines | Received a Rocket Launcher from a helpful Derelict 798 | -10/Mines | Discovered new exit (range 14) 827 | -10/Mines | Assembled infested the area 831 | -10/Mines | Met a Derelict shopkeep closing up shop 1426 | -10/Mines | Discovered new exit (range 8) 1528 | -10/Mines | Deemed a non-threat by the Exiles lab entrance 1528 | -10/Mines | Discovered new exit (range 5) 1538 | -10/Mines | Entered Exiles 1606 | -10/Exiles | Met 8R-AWN 1663 | -10/Exiles | Met EX-HEX 1763 | -10/Exiles | Met EX-BIN 1793 | -10/Exiles | Aligned with FarCom system 1796 | -10/Exiles | Given EX-Vault access code 1871 | -10/Exiles | Opened EX-Vault 1951 | -10/Exiles | Warned to stay clear of 0b10 Research branches 2004 | -10/Exiles | Found 0b10 Alert Chip 2144 | -10/Exiles | Met EX-DEC 2322 | -10/Exiles | Discovered new exit (range 10) 2345 | -10/Exiles | Left Exiles lab with 0b10 Alert Chip 2345 | -10/Exiles | Entered Mines 2415 | -9/Mines | Learned Materials emergency access door positions 2554 | -9/Mines | Found a damaged Exp. Sensor Array with a note attached 2719 | -9/Mines | Discovered new exit (range 6) 2734 | -9/Mines | Entered Materials 2734 | -8/Materials | Evolved 4 slots: Power x1, Utility x2, Weapon x1 2769 | -8/Materials | Discovered new exit (range 16) 2813 | -8/Materials | Entered Storage 2953 | -8/Storage | Lost 4 parts (1p3w) 2958 | -8/Storage | Core integrity fell below 50% 3024 | -8/Storage | Core integrity fell below 20% 3066 | -8/Storage | Lost 4 parts (1u3w) 3069 | -8/Storage | Destroyed by Y-45 Defender with Heavy Assault Rifle Last Messages --------------- Acquired Hvy. Assault Rifle. Y-45 Defender destroyed. Acquired 19 matter. Acquired 3 matter. Salvage Targeting Computer destroyed. Acquired Hvy. Assault Rifle. R-06 Scavenger collects Heat Sink. R-06 Scavenger collects Lgt. Armor Plating. Critical hit (Burn: +37). R-06 Scavenger collects Lgt. Treads. G-47 Trooper destroyed. R-06 Scavenger collects Particle Gun. Hvy. Assault Rifle destroyed. Acquired 49 matter. Slammed into K-01 Serf. Destabilizing: System corrupted (+1). W-25 Informer sends out distress signal. System corrupted: Component data lost. K-01 Serf destroyed. A-02 Transporter destroyed. Map ----- +----------------------------------------------------+ | ?????????????????????????????????? | | ?????????????????????????????????? | | ?????????????????????????????????? | | ?????????????????????????????????? | | ?????????????????????????????????? | | ?????????????????????????????????? | | ?????????????????????????????????? | | ?????????????????????????????????? | | ?????????????????????????????????? | | ?????????????????????????????????? | | ?????????????????????????????????? | | ?????????????????????????????????? | | ???????????????Y?????????????????? | | ?????????????????????????????????? | | ?????????????????????????????????? | | ?????????????????????????????????? | | ?????????????????????????????????? | | ??????####+#####?????????????????? | | ??????# #?????????????????? | | ?????## """ #?????????????????? | | ?????# """ #?????????????????? | | ???#### """ #?????????Y???????? | | ???#""" Y k #?????????????????? | | ???#"G =!%"""k#?#??"""??#???????? | | ???#""" !%!""" #?# """"" #???????? | | ??????# !@ """ #?# ####????? | | ??????# #?# """"" """#????? | | ??????########+#?# """"" R"#????? | | ?????????????# #?# """"" ""??????? | | ?????????????# #?# #####???? | | ???????????### ###? ??#T"#???? | | ???????????+ !%=####+##### "##### | | ???????????# Y | | ???????????# | | ???????????# | | ???????????# ################# | | ???????????######## #? | | ????????????????### #??" | | ????????????????#"" #??" | | ?????????????????"T """ #??? ? | | ?????????????????"" """ #??? ? | | ??????????????????# """ #####+## | | ??????????????? ### # | | ?????????????? ## """ # | | ????????? ## """ +% | | ???????# """"## """ ##### # | | ?????""" ! """"## #??## # | | ?????"R """"#####+####### | | ?????""" """"# | | ???????# # | +----------------------------------------------------+ Best States ------------- Heat Dissipation 31 Energy Generation 14 Energy Capacity 275 Matter Stores 300 Matter Capacity 300 Sight Range 16 Terrain Scan Density 10 Evasion (%) 55 Salvage Targeting 2 Item Schematics ----------------- None Robot Schematics ------------------ None Fabricated ------------ Nothing Repaired ---------- Nothing Alien Tech Used ----------------- None Achievements -------------- None Challenges ------------ None Game ------ Seed GhostAngularInterpreter Manual? 0 Play Time 00:18:19 Cumulative 95.1 hours Start 2025.08.19 @ 18:16:45 End 2025.08.19 @ 19:13:49 Sessions 2 Manual Loads 0 Difficulty Rogue Special Mode None Game No. 368 Rogue 368 Adventurer 0 Explorer 0 Win Type - Total 0 Types 0/0/0/0/0/0/0/0/0/0 Lore% 43 Gallery% 40 Achievement% 30 Wizard Run 0 Options --------- Layout 2 ASCII 0 Keyboard 0 Movement Mouse Keybinds 0 Fullscreen 2 Font 24/Smallcaps Map View 50x44 Zoom Use 0% Tactical HUD 0 Map Filters NONE Filters NONE Steam 1 RUN: 16d4341d-2fd0-4137-9819-33d85f75c40e